fUSD/lending_fUSD_20241222
["ID","MTS","AMOUNT","RATE_DAILY","PERIOD"]
[346355415,1734907836898,-500.0,0.00019452,2]
[346355416,1734907836908,-500.0,0.00019452,2]
[346355417,1734907836918,-500.0,0.00019452,2]
[346355418,1734907836927,-500.0,0.00019452,2]
[346355419,1734907836936,-500.0,0.00019452,2]
[346355420,1734907836945,-468.17485744,0.00019452,2]
[346355421,1734907836954,-631.93,0.00019452,2]
[346355422,1734907836963,-585.62,0.00019452,2]
[346355423,1734907836972,-500.0,0.00019452,2]
[346355424,1734907836981,-500.0,0.00019452,2]
[346355425,1734907836991,-500.0,0.00019452,2]
[346355426,1734907837000,-528.5,0.00019452,2]
[346355427,1734907837009,-500.0,0.00019452,2]
[346355428,1734907837018,-500.0,0.00019452,2]
[346355429,1734907837027,-500.0,0.00019452,2]
[346355430,1734907837036,-500.0,0.00019452,2]
[346355431,1734907837045,-500.0,0.00019452,2]
[346355432,1734907837054,-500.0,0.00019452,2]
[346355433,1734907837063,-636.07,0.00019452,2]
[346355434,1734907837072,-500.0,0.00019452,2]
[346355435,1734907837082,-500.0,0.00019452,2]
[346355436,1734907837091,-500.0,0.00019452,2]
[346355437,1734907837099,-500.0,0.00019452,2]
[346355438,1734907837109,-500.0,0.00019452,2]
[346355439,1734907837118,-500.0,0.00019452,2]
[346355440,1734907837127,-500.0,0.00019452,2]
[346355441,1734907837136,-500.0,0.00019452,2]
[346355442,1734907837147,-500.0,0.00019452,2]
[346355443,1734907837157,-460.77,0.00019452,2]
[346355444,1734907837166,-596.45,0.00019452,2]
[346355445,1734907837176,-500.0,0.00019452,2]
[346355446,1734907837185,-782.78,0.00019452,2]
[346355447,1734907837194,-547.21,0.00019452,2]
[346355448,1734907837203,-500.0,0.00019452,2]
[346355449,1734907837212,-1014.35,0.00019452,2]
[346355450,1734907837221,-500.0,0.00019452,2]
[346355451,1734907837230,-712.87,0.00019452,2]
[346355452,1734907837240,-500.0,0.00019452,2]
[346355453,1734907837249,-637.03,0.00019452,2]
[346355454,1734907837258,-500.0,0.00019452,2]
[346355455,1734907837267,-1042.58,0.00019452,2]
[346355456,1734907837276,-500.0,0.00019452,2]
[346355457,1734907837285,-6435.26,0.00019452,2]
[346355458,1734907837295,-500.0,0.00019452,2]
[346355459,1734907837304,-623.18,0.00019452,2]
[346355460,1734907837313,-704.19,0.00019452,2]
[346355461,1734907837323,-500.0,0.00019452,2]
[346355462,1734907837332,-687.81,0.00019452,2]
[346355463,1734907837343,-1811.62,0.00019452,2]
[346355464,1734907837352,-500.0,0.00019452,2]
[346355465,1734907837361,-1659.12,0.00019452,2]
[346355466,1734907837370,-480.604431,0.00019452,2]
[346355467,1734907837380,-500.0,0.00019452,2]
[346355468,1734907837389,-721.77311,0.00019452,2]
[346355469,1734907837398,-500.0,0.00019452,2]
[346355470,1734907837407,-1712.25,0.00019452,2]
[346355471,1734907837417,-723.6,0.00019452,2]
[346355472,1734907837426,-927.06,0.00019452,2]
[346355473,1734907837435,-500.0,0.00019452,2]
[346355474,1734907837444,-1251.98,0.00019452,2]
[346355475,1734907837453,-500.0,0.00019452,2]
[346355476,1734907837462,-2462.95,0.00019452,2]
[346355477,1734907837471,-667.28,0.00019452,2]
[346355478,1734907837481,-2627.48,0.00019452,2]
[346355479,1734907837491,-7712.81,0.00019452,2]
[346355480,1734907837500,-671.7,0.00019452,2]
[346355481,1734907837510,-1433.62,0.00019452,2]
[346355482,1734907837519,-500.0,0.00019452,2]
[346355483,1734907837529,-500.0,0.00019452,2]
[346355484,1734907837538,-500.0,0.00019452,2]
[346355485,1734907837548,-1663.12,0.00019452,2]
[346355486,1734907837557,-523.2,0.00019452,2]
[346355487,1734907837566,-500.0,0.00019452,2]
[346355488,1734907837575,-9802.09,0.00019452,2]
[346355489,1734907837584,-500.0,0.00019452,2]
[346355490,1734907837593,-500.0,0.00019452,2]
[346355491,1734907837602,-500.0,0.00019452,2]
[346355492,1734907837611,-500.0,0.00019452,2]
[346355493,1734907837621,-931.36,0.00019452,2]
[346355494,1734907837630,-5731.55,0.00019452,2]
[346355495,1734907837639,-882.73,0.00019452,2]
[346355496,1734907837648,-500.0,0.00019452,2]
[346355497,1734907837657,-824.52,0.00019452,2]
[346355498,1734907837666,-938.52,0.00019452,2]
[346355499,1734907837675,-1292.47,0.00019452,2]
[346355500,1734907837684,-1216.24,0.00019452,2]
[346355501,1734907837693,-1136.4,0.00019452,2]
[346355502,1734907837703,-1594.18,0.00019452,2]
[346355503,1734907837713,-500.0,0.00019452,2]
[346355504,1734907837722,-829.04,0.00019452,2]
[346355505,1734907837731,-990.54,0.00019452,2]
[346355506,1734907837740,-500.0,0.00019452,2]
[346355507,1734907837749,-2037.06,0.00019452,2]
[346355508,1734907837758,-1847.87,0.00019452,2]
[346355509,1734907837768,-534.01,0.00019452,2]
[346355510,1734907837777,-500.0,0.00019452,2]
[346355511,1734907837786,-597.2,0.00019452,2]
[346355512,1734907837795,-500.0,0.00019452,2]
[346355513,1734907837804,-1679.51,0.00019452,2]
[346355514,1734907837814,-500.0,0.00019452,2]
[346355515,1734907837823,-500.0,0.00019452,2]
[346355516,1734907837834,-7671.32,0.00019452,2]
[346355517,1734907837844,-503.9,0.00019452,2]
[346355518,1734907837854,-1121.53,0.00019452,2]
[346355519,1734907837863,-500.0,0.00019452,2]
[346355520,1734907837872,-500.0,0.00019452,2]
[346355521,1734907837881,-1423.2,0.00019452,2]
[346355522,1734907837890,-1087.04,0.00019452,2]
[346355523,1734907837899,-2049.24,0.00019452,2]
[346355524,1734907837909,-1296.88,0.00019452,2]
[346355525,1734907837918,-500.0,0.00019452,2]
[346355526,1734907837927,-500.0,0.00019452,2]
[346355528,1734907837936,-1997.35,0.00019452,2]
[346355529,1734907837945,-500.0,0.00019452,2]
[346355530,1734907837954,-1288.59,0.00019452,2]
[346355531,1734907837963,-1378.41,0.00019452,2]
[346355532,1734907837972,-500.0,0.00019452,2]
[346355534,1734907837981,-2624.35,0.00019452,2]
[346355535,1734907837990,-3656.81,0.00019452,2]
[346355536,1734907838000,-500.0,0.00019452,2]
[346355537,1734907838009,-525.07,0.00019452,2]
[346355538,1734907838018,-4187.06,0.00019452,2]
[346355539,1734907838027,-3076.19,0.00019452,2]
[346355540,1734907838036,-776.13,0.00019452,2]
[346355541,1734907838047,-3362.01,0.00019452,2]
[346355542,1734907838056,-635.72,0.00019452,2]
[346355543,1734907838065,-762.87,0.00019452,2]
[346355544,1734907838074,-3065.21,0.00019452,2]
[346355545,1734907838083,-3302.47,0.00019452,2]
[346355546,1734907838093,-500.0,0.00019452,2]
[346355548,1734907838277,-1519.52,0.00019452,2]
[346355549,1734907838288,-500.0,0.00019452,2]
[346355550,1734907838297,-500.0,0.00019452,2]
[346355551,1734907838307,-1948.04,0.00019452,2]
[346355552,1734907838316,-1447.99,0.00019452,2]
[346355553,1734907838325,-1655.24,0.00019452,2]
[346355554,1734907838334,-500.0,0.00019452,2]
[346355555,1734907838343,-500.0,0.00019452,2]
[346355556,1734907838353,-500.0,0.00019452,2]
[346355557,1734907838363,-2047.95,0.00019452,2]
[346355558,1734907838373,-577.94,0.00019452,2]
[346355559,1734907838382,-2989.97,0.00019452,2]
[346355560,1734907838391,-538.31,0.00019452,2]
[346355561,1734907838401,-500.0,0.00019452,2]
[346355562,1734907838410,-500.0,0.00019452,2]
[346355563,1734907838419,-500.0,0.00019452,2]
[346355564,1734907838428,-6806.89,0.00019452,2]
[346355565,1734907838439,-1113.32,0.00019452,2]
[346355566,1734907838448,-500.0,0.00019452,2]
[346355567,1734907838457,-500.0,0.00019452,2]
[346355568,1734907838467,-500.0,0.00019452,2]
[346355569,1734907838476,-5874.78,0.00019452,2]
[346355570,1734907838485,-500.0,0.00019452,2]
[346355571,1734907838495,-1148.42,0.00019452,2]
[346355572,1734907838504,-500.0,0.00019452,2]
[346355573,1734907838513,-831.19,0.00019452,2]
[346355574,1734907838522,-716.0,0.00019452,2]
[346355575,1734907838533,-500.0,0.00019452,2]
[346355576,1734907838543,-1359.26,0.00019452,2]
[346355577,1734907838552,-1670.35,0.00019452,2]
[346355578,1734907838563,-1126.55,0.00019452,2]
[346355579,1734907838573,-360.0108083,0.00019452,2]
[346355580,1734907838582,-3107.91,0.00019452,2]
[346355581,1734907838591,-1078.88,0.00019452,2]
[346355582,1734907838600,-500.0,0.00019452,2]
[346355583,1734907838610,-500.0,0.00019452,2]
[346355584,1734907838619,-159.50120865,0.00019485,2]
[346355585,1734907838628,-410.3919574,0.00019517,2]
[346355586,1734907838638,-793.10861648,0.00019531,2]
[346355587,1734907838647,-156.25953738,0.00019535,2]
[346355588,1734907838656,-159.50120865,0.00019544,2]
[346355589,1734907838665,-1149.17349692,0.000196,2]
[346355590,1734907838675,-1134.77143525,0.000196,2]
[346355591,1734907838683,-159.50120865,0.00019603,2]
[346355592,1734907838693,-793.10861648,0.00019623,2]
[346355593,1734907838703,-156.25953738,0.00019626,2]
[346355594,1734907838712,-420.0,0.00019639,2]
[346355595,1734907838722,-159.50120865,0.00019663,2]
[346355596,1734907838731,-793.10861648,0.00019715,2]
[346355597,1734907838740,-156.25953738,0.00019717,2]
[346355598,1734907838749,-159.50120865,0.00019722,2]
[346355599,1734907838759,-500.0,0.00019725,2]
[346355600,1734907838769,-840.77,0.00019725,2]
[346355601,1734907838778,-862.97,0.00019725,2]
[346355602,1734907838787,-500.0,0.00019725,2]
[346355603,1734907838797,-990.4,0.00019725,2]
[346355604,1734907838806,-849.01,0.00019725,2]
[346355605,1734907838815,-922.03,0.00019725,2]
[346355606,1734907838824,-573.55,0.00019725,2]
[346355607,1734907838834,-3162.14,0.00019725,2]
[346355608,1734907838843,-21557.8,0.00019725,2]
[346355609,1734907838853,-1900.11,0.00019725,2]
[346355611,1734907838863,-1052.37,0.00019725,2]
[346355613,1734907838872,-741.04,0.00019725,2]
[346355615,1734907838881,-2027.8,0.00019725,2]
[346355617,1734907838891,-12841.72,0.00019725,2]
[346355619,1734907838900,-500.0,0.00019725,2]
[346355621,1734907838909,-995.35,0.00019725,2]
[346355623,1734907838919,-974.71,0.00019725,2]
[346355625,1734907838929,-785.25,0.00019725,2]
[346355627,1734907838939,-3278.12,0.00019725,2]
[346355628,1734907838948,-500.0,0.00019725,2]
[346355629,1734907838958,-500.0,0.00019725,2]
[346355630,1734907838967,-1000.0,0.00019725,2]
[346355631,1734907838977,-814.27,0.00019725,2]
[346355632,1734907838986,-500.0,0.00019725,2]
[346355633,1734907838995,-2682.82,0.00019725,2]
[346355634,1734907839005,-2264.37,0.00019726,2]
[346355635,1734907839014,-22720.36609724,0.00019726,2]
[346355636,1734907839023,-500.0,0.00019726,2]
[346355637,1734907839032,-500.0,0.00019726,2]
[346355638,1734907839041,-500.0,0.00019726,2]
[346355639,1734907839050,-500.0,0.00019726,2]
[346355640,1734907839059,-500.0,0.00019726,2]
[346355641,1734907839068,-500.0,0.00019726,2]
[346355642,1734907839078,-500.0,0.00019726,2]
[346355643,1734907839087,-557.28668797,0.00019726,2]
[346355644,1734907839096,-500.0,0.00019726,2]
[346355645,1734907839105,-500.0,0.00019726,2]
[346355646,1734907839115,-500.0,0.00019726,2]
[346355647,1734907839124,-500.0,0.00019726,2]
[346355648,1734907839133,-500.0,0.00019726,2]
[346355649,1734907839143,-500.0,0.00019726,2]
[346355650,1734907839156,-500.0,0.00019726,2]
[346355651,1734907839165,-500.0,0.00019726,2]
[346355652,1734907839174,-500.0,0.00019726,2]
[346355653,1734907839183,-500.0,0.00019726,2]
[346355654,1734907839193,-500.0,0.00019726,2]
[346355655,1734907839202,-647.92,0.00019726,2]
[346355656,1734907839211,-595.24,0.00019726,2]
[346355657,1734907839221,-1049.04,0.00019726,2]
[346355658,1734907839230,-485.47,0.00019726,2]
[346355659,1734907839240,-500.0,0.00019726,2]
[346355660,1734907839248,-500.0,0.00019726,2]
[346355661,1734907839257,-500.0,0.00019726,2]
[346355662,1734907839266,-500.0,0.00019726,2]
[346355663,1734907839275,-500.0,0.00019726,2]
[346355664,1734907839284,-500.0,0.00019726,2]
[346355665,1734907839293,-500.0,0.00019726,2]
[346355666,1734907839302,-500.0,0.00019726,2]
[346355667,1734907839311,-500.0,0.00019726,2]
[346355668,1734907839320,-500.0,0.00019726,2]
[346355669,1734907839330,-500.0,0.00019726,2]
[346355670,1734907839339,-579.54,0.00019726,2]
[346355671,1734907839348,-590.77,0.00019726,2]
[346355672,1734907839357,-500.0,0.00019726,2]
[346355673,1734907839367,-500.0,0.00019726,2]
[346355674,1734907839376,-693.74,0.00019726,2]
[346355675,1734907839385,-500.0,0.00019726,2]
[346355676,1734907839394,-723.7,0.00019726,2]
[346355677,1734907839403,-699.59,0.00019726,2]
[346355678,1734907839413,-510.21,0.00019726,2]
[346355679,1734907839425,-500.0,0.00019726,2]
[346355680,1734907839434,-500.0,0.00019726,2]
[346355681,1734907839443,-500.0,0.00019726,2]
[346355682,1734907839452,-500.0,0.00019726,2]
[346355683,1734907839461,-1022.68,0.00019726,2]
[346355684,1734907839470,-500.0,0.00019726,2]
[346355685,1734907839479,-500.0,0.00019726,2]
[346355686,1734907839489,-721.62,0.00019726,2]
[346355687,1734907839498,-500.0,0.00019726,2]
[346355688,1734907839507,-500.0,0.00019726,2]
[346355689,1734907839518,-500.0,0.00019726,2]
[346355690,1734907839527,-758.81,0.00019726,2]
[346355691,1734907839536,-500.0,0.00019726,2]
[346355692,1734907839546,-500.0,0.00019726,2]
[346355693,1734907839555,-500.0,0.00019726,2]
[346355694,1734907839564,-500.0,0.00019726,2]
[346355695,1734907839573,-500.0,0.00019726,2]
[346355696,1734907839583,-500.0,0.00019726,2]
[346355697,1734907839591,-631.93,0.00019726,2]
[346355698,1734907839600,-585.62,0.00019726,2]
[346355699,1734907839610,-500.0,0.00019726,2]
[346355700,1734907839619,-500.0,0.00019726,2]
[346355701,1734907839628,-500.0,0.00019726,2]
[346355702,1734907839638,-528.5,0.00019726,2]
[346355703,1734907839647,-500.0,0.00019726,2]
[346355704,1734907839656,-500.0,0.00019726,2]
[346355705,1734907839666,-500.0,0.00019726,2]
[346355706,1734907839675,-500.0,0.00019726,2]
[346355707,1734907839685,-500.0,0.00019726,2]
[346355708,1734907839694,-500.0,0.00019726,2]
[346355709,1734907839704,-636.07,0.00019726,2]
[346355710,1734907839714,-500.0,0.00019726,2]
[346355711,1734907839723,-500.0,0.00019726,2]
[346355712,1734907839732,-500.0,0.00019726,2]
[346355713,1734907839741,-500.0,0.00019726,2]
[346355714,1734907839750,-500.0,0.00019726,2]
[346355715,1734907839759,-500.0,0.00019726,2]
[346355716,1734907839769,-500.0,0.00019726,2]
[346355717,1734907839779,-500.0,0.00019726,2]
[346355718,1734907839788,-500.0,0.00019726,2]
[346355719,1734907839797,-596.45,0.00019726,2]
[346355720,1734907839807,-304.6683333,0.00019726,2]
[346355721,1734907839817,-782.78,0.00019726,2]
[346355722,1734907839826,-547.21,0.00019726,2]
[346355723,1734907839835,-500.0,0.00019726,2]
[346355724,1734907839845,-1014.35,0.00019726,2]
[346355725,1734907839854,-500.0,0.00019726,2]
[346355726,1734907839864,-712.87,0.00019726,2]
[346355727,1734907839873,-500.0,0.00019726,2]
[346355728,1734907839882,-637.03,0.00019726,2]
[346355729,1734907839891,-500.0,0.00019726,2]
[346355730,1734907839903,-1042.58,0.00019726,2]
[346355731,1734907839913,-500.0,0.00019726,2]
[346355732,1734907839923,-6435.26,0.00019726,2]
[346355733,1734907839932,-500.0,0.00019726,2]
[346355734,1734907839941,-623.18,0.00019726,2]
[346355735,1734907839951,-704.19,0.00019726,2]
[346355736,1734907839960,-500.0,0.00019726,2]
[346355737,1734907839969,-687.81,0.00019726,2]
[346355738,1734907839979,-1811.62,0.00019726,2]
[346355739,1734907839988,-500.0,0.00019726,2]
[346355740,1734907839998,-1659.12,0.00019726,2]
[346355742,1734907840007,-480.604431,0.00019726,2]
[346355743,1734907840016,-500.0,0.00019726,2]
[346355744,1734907840025,-721.77311,0.00019726,2]
[346355745,1734907840035,-500.0,0.00019726,2]
[346355746,1734907840044,-1712.25,0.00019726,2]
[346355747,1734907840053,-723.6,0.00019726,2]
[346355748,1734907840062,-927.06,0.00019726,2]
[346355749,1734907840073,-500.0,0.00019726,2]
[346355750,1734907840083,-1251.98,0.00019726,2]
[346355751,1734907840094,-500.0,0.00019726,2]
[346355752,1734907840103,-2462.95,0.00019726,2]
[346355753,1734907840113,-667.28,0.00019726,2]
[346355754,1734907840123,-2627.48,0.00019726,2]
[346355755,1734907840131,-7712.81,0.00019726,2]
[346355756,1734907840140,-671.7,0.00019726,2]
[346355757,1734907840152,-1433.62,0.00019726,2]
[346355758,1734907840161,-500.0,0.00019726,2]
[346355759,1734907840170,-500.0,0.00019726,2]
[346355760,1734907840179,-500.0,0.00019726,2]
[346355761,1734907840188,-1663.12,0.00019726,2]
[346355762,1734907840197,-523.2,0.00019726,2]
[346355763,1734907840206,-500.0,0.00019726,2]
[346355765,1734907840215,-9802.09,0.00019726,2]
[346355766,1734907840225,-500.0,0.00019726,2]
[346355767,1734907840234,-500.0,0.00019726,2]
[346355768,1734907840244,-157.36495094,0.00019726,2]
[346355769,1734907840253,-500.0,0.00019726,2]
[346355770,1734907840263,-931.36,0.00019726,2]
[346355771,1734907840272,-5731.55,0.00019726,2]
[346355772,1734907840281,-882.73,0.00019726,2]
[346355773,1734907840290,-500.0,0.00019726,2]
[346355774,1734907840300,-824.52,0.00019726,2]
[346355775,1734907840309,-938.52,0.00019726,2]
[346355776,1734907840318,-1292.47,0.00019726,2]
[346355777,1734907840327,-1216.24,0.00019726,2]
[346355778,1734907840336,-1136.4,0.00019726,2]
[346355779,1734907840345,-1594.18,0.00019726,2]
[346355780,1734907840354,-500.0,0.00019726,2]
[346355781,1734907840362,-829.04,0.00019726,2]
[346355782,1734907840372,-990.54,0.00019726,2]
[346355783,1734907840381,-500.0,0.00019726,2]
[346355784,1734907840391,-2037.06,0.00019726,2]
[346355785,1734907840400,-1847.87,0.00019726,2]
[346355786,1734907840409,-534.01,0.00019726,2]
[346355787,1734907840419,-500.0,0.00019726,2]
[346355788,1734907840429,-597.2,0.00019726,2]
[346355789,1734907840438,-500.0,0.00019726,2]
[346355790,1734907840448,-1679.51,0.00019726,2]
[346355791,1734907840458,-500.0,0.00019726,2]
[346355792,1734907840466,-226.74,0.00019726,2]
[346355793,1734907840476,-7671.32,0.00019726,2]
[346355794,1734907840486,-503.9,0.00019726,2]
[346355795,1734907840495,-1121.53,0.00019726,2]
[346355796,1734907840504,-500.0,0.00019726,2]
[346355797,1734907840565,-500.0,0.00019726,2]
[346355798,1734907840574,-1423.2,0.00019726,2]
[346355799,1734907840583,-1087.04,0.00019726,2]
[346355800,1734907840593,-2049.24,0.00019726,2]
[346355801,1734907840603,-1296.88,0.00019726,2]
[346355802,1734907840613,-250.91259112,0.00019726,2]
[346355803,1734907840622,-500.0,0.00019726,2]
[346355804,1734907840631,-1997.35,0.00019726,2]
[346355805,1734907840640,-500.0,0.00019726,2]
[346355806,1734907840649,-1288.59,0.00019726,2]
[346355807,1734907840659,-1378.41,0.00019726,2]
[346355808,1734907840668,-500.0,0.00019726,2]
[346355809,1734907840678,-2624.35,0.00019726,2]
[346355810,1734907840687,-3656.81,0.00019726,2]
[346355811,1734907840696,-500.0,0.00019726,2]
[346355812,1734907840706,-525.07,0.00019726,2]
[346355813,1734907840715,-4187.06,0.00019726,2]
[346355814,1734907840724,-700.63702649,0.00019726,2]
[346355818,1734907840763,-807.79,0.00019178,2]
[346355821,1734907840773,-976.79000001,0.00019726,2]
[346355824,1734907840800,-1398.7629735,0.00019726,2]
[346355826,1734907840810,-776.13,0.00019726,2]
[346355828,1734907840819,-3362.01,0.00019726,2]
[346355830,1734907840828,-635.72,0.00019726,2]
[346355832,1734907840838,-762.87,0.00019726,2]
[346355834,1734907840847,-3302.47,0.00019726,2]
[346355836,1734907840857,-3065.21,0.00019726,2]
[346355839,1734907840867,-500.0,0.00019726,2]
[346355840,1734907840876,-1519.52,0.00019726,2]
[346355843,1734907840886,-500.0,0.00019726,2]
[346355845,1734907840895,-500.0,0.00019726,2]
[346355846,1734907840904,-1948.04,0.00019726,2]
[346355848,1734907840913,-1177.2670265,0.00019726,2]
[346355901,1734907841559,-807.79,0.00019452,2]
[346355903,1734907841568,-270.7229735,0.00019726,2]
[346355905,1734907841577,-1655.24,0.00019726,2]
[346355907,1734907841586,-500.0,0.00019726,2]
[346355909,1734907841594,-500.0,0.00019726,2]
[346355911,1734907841603,-346.57087125,0.00019726,2]
[346355913,1734907841615,-1701.37912875,0.00019726,2]
[346355915,1734907841624,-577.94,0.00019726,2]
[346355917,1734907841633,-2989.97,0.00019726,2]
[346355919,1734907841643,-538.31,0.00019726,2]
[346355921,1734907841652,-500.0,0.00019726,2]
[346355923,1734907841661,-500.0,0.00019726,2]
[346355925,1734907841670,-6806.89,0.00019726,2]
[346355927,1734907841679,-253.2,0.00019726,2]
[346355929,1734907841688,-1113.32,0.00019726,2]
[346355931,1734907841697,-500.0,0.00019726,2]
[346355933,1734907841707,-500.0,0.00019726,2]
[346355934,1734907841716,-500.0,0.00019726,2]
[346355936,1734907841725,-5874.78,0.00019726,2]
[346355938,1734907841734,-500.0,0.00019726,2]
[346355940,1734907841743,-1148.42,0.00019726,2]
[346355942,1734907841752,-500.0,0.00019726,2]
[346355944,1734907841762,-831.19,0.00019726,2]
[346355946,1734907841771,-716.0,0.00019726,2]
[346355948,1734907841779,-500.0,0.00019726,2]
[346355950,1734907841789,-1359.26,0.00019726,2]
[346355952,1734907841797,-1670.35,0.00019726,2]
[346355954,1734907841807,-1126.55,0.00019726,2]
[346355956,1734907841816,-3107.91,0.00019726,2]
[346355958,1734907841825,-1078.88,0.00019726,2]
[346355960,1734907841834,-500.0,0.00019726,2]
[346355962,1734907841844,-500.0,0.00019726,2]
[346355964,1734907841853,-774.00586413,0.00019726,2]
[346355995,1734907842126,-33.78413587,0.00019726,2]
[346355997,1734907842135,-508.24,0.00019726,2]
[346355999,1734907842144,-150.0,0.00019728,2]
[346356001,1734907842157,-150.0,0.0001973,2]
[346356003,1734907842166,-150.0,0.00019734,2]
[346356005,1734907842175,-150.0,0.00019737,2]
[346356007,1734907842184,-150.0,0.00019739,2]
[346356009,1734907842193,-410.39195741,0.00019748,2]
[346356011,1734907842203,-150.0,0.00019754,2]
[346356013,1734907842212,-150.0,0.00019759,2]
[346356015,1734907842221,-150.0,0.00019762,2]
[346356017,1734907842232,-150.0,0.00019762,2]
[346356019,1734907842242,-1500.0,0.00019764,2]
[346356021,1734907842252,-150.0,0.00019765,2]
[346356023,1734907842261,-150.0,0.00019767,2]
[346356025,1734907842270,-150.0,0.00019768,2]
[346356028,1734907842279,-511.80322386,0.00019773,2]
[346356030,1734907842289,-1500.0,0.00019779,2]
[346356032,1734907842298,-159.50120865,0.00019781,2]
[346356033,1734907842307,-150.0,0.00019783,2]
[346356036,1734907842317,-150.0,0.00019791,2]
[346356038,1734907842326,-150.0,0.00019793,2]
[346356040,1734907842338,-1500.0,0.00019798,2]
[346356042,1734907842348,-729829.47032982,0.000198,2]
[346356044,1734907842357,-150.0,0.000198,2]
[346356046,1734907842366,-3000.0,0.000198,2]
[346356048,1734907842375,-150.0,0.00019804,2]
[346356050,1734907842385,-150.0,0.00019805,2]
[346356052,1734907842395,-793.10861648,0.00019808,2]
[346356054,1734907842403,-156.25953738,0.00019809,2]
[346356056,1734907842412,-150.0,0.00019809,2]
[346356058,1734907842423,-504.22563721,0.0001981,2]
[346356060,1734907842432,-150.0,0.0001981,2]
[346356062,1734907842442,-150.0,0.00019812,2]
[346356064,1734907842451,-150.0,0.00019812,2]
[346356066,1734907842460,-1265.0,0.00019818,2]
[346356068,1734907842470,-2010.0,0.00019818,2]
[346356070,1734907842479,-150.0,0.00019818,2]
[346356072,1734907842488,-633.0,0.00019818,2]
[346356074,1734907842498,-587.453,0.00019818,2]
[346356076,1734907842507,-1898.0,0.00019818,2]
[346356078,1734907842516,-835.0,0.00019818,2]
[346356080,1734907842525,-941.0,0.00019818,2]
[346356082,1734907842535,-1256.0,0.00019818,2]
[346356084,1734907842544,-3788.288,0.00019818,2]
[346356086,1734907842553,-3682.0,0.00019818,2]
[346356088,1734907842562,-536.0,0.00019818,2]
[346356090,1734907842572,-3886.0,0.00019818,2]
[346356092,1734907842581,-1170.0,0.00019818,2]
[346356094,1734907842590,-241.374,0.00019818,2]
[346356096,1734907842599,-250.0,0.00019818,2]
[346356098,1734907842609,-150.0,0.00019822,2]
[346356100,1734907842618,-1500.0,0.00019829,2]
[346356102,1734907842627,-150.0,0.00019834,2]
[346356104,1734907842637,-1500.0,0.00019835,2]
[346356106,1734907842647,-150.0,0.00019835,2]
[346356108,1734907842656,-1500.0,0.00019836,2]
[346356110,1734907842666,-500.0,0.0001984,2]
[346356112,1734907842677,-2000.0,0.0001984,2]
[346356114,1734907842686,-500.0,0.0001984,2]
[346356116,1734907842696,-500.0,0.0001984,2]
[346356118,1734907842705,-200.0,0.0001984,2]
[346356120,1734907842715,-159.50120865,0.00019841,2]
[346356122,1734907842724,-150.0,0.00019846,2]
[346356124,1734907842734,-150.0,0.00019848,2]
[346356126,1734907842743,-330.56,0.00019857,2]